bitfinex/quotes_ETHUSD_20250519
["timestamp","ask_amount","ask_price","bid_price","bid_amount"]
[1747643327621,2.72028065,2411.0,2410.6,13.19733785]
[1747643328598,6.86794388,2411.0,2410.6,9.049]
[1747643328801,4.14791783,2410.9,2410.6,9.049]
[1747643328990,4.14808902,2410.8,2410.4,9.049]
[1747643329191,4.14787376,2410.9,2410.4,9.049]
[1747643329392,1.06243611,2410.9,2410.5,4.14838873]
[1747643329605,1.06243611,2410.9,2410.6,4.14824453]
[1747643330122,1.06243611,2410.9,2410.7,4.14817225]
[1747643330293,4.14749263,2411.1,2410.7,4.14817225]
[1747643330493,10.07,2411.2,2410.8,4.14798663]
[1747643330719,14.21740034,2411.2,2410.8,4.14798663]
[1747643330905,4.14763086,2411.1,2410.6,0.8004]
[1747643331101,5.17796975,2411.0,2410.6,9.049]
[1747643331312,4.14808465,2410.8,2410.6,9.049]
[1747643331626,8.6586687,2410.7,2410.3,13.1977892]
[1747643331923,8.65866193,2410.7,2410.3,13.1977892]
[1747643332222,4.14783517,2410.9,2410.3,9.049]
[1747643332436,4.14876192,2410.4,2410.1,0.05]
[1747643332644,4.14897956,2410.3,2410.1,0.05]
[1747643332938,4.14903327,2410.2,2410.1,0.05]
[1747643333296,4.12903327,2410.2,2410.1,0.05]
[1747643337251,4.89553327,2410.2,2410.1,0.05]
[1747643337407,6.17559567,2410.2,2410.1,0.05]
[1747643337603,14.17559567,2410.2,2410.1,0.05]
[1747643337904,14.17559567,2410.2,2408.1,0.05]
[1747643337905,0.7504,2409.6,2408.1,0.05]
[1747643338135,9.20908568,2408.2,2408.1,0.05]
[1747643338317,35.30308568,2408.2,2408.1,0.05]
[1747643338644,26.25508568,2408.2,2408.1,0.05]
[1747643338855,30.2009272,2408.2,2408.1,0.05]
[1747643339054,29.6509272,2408.2,2408.1,0.05]
[1747643339457,8.84872054,2408.2,2408.1,0.05]
[1747643339608,4.90287902,2408.2,2408.1,0.05]
[1747643339809,16.65908568,2408.2,2408.1,0.05]
[1747643340305,0.55,2407.9,2405.9,1.10407797]
[1747643340507,4.1535436,2407.6,2406.2,4.15593051]
[1747643340703,4.15368639,2407.5,2406.3,14.6549849]
[1747643340946,4.15386077,2407.4,2406.8,4.1547585]
[1747643341446,4.15386077,2407.4,2406.8,4.15480604]
[1747643341642,4.17156102,2407.6,2406.4,9.053]
[1747643341846,9.182,2407.7,2406.5,0.55]
[1747643342006,4.15345576,2407.7,2407.1,4.15432814]
[1747643342203,4.15323414,2407.8,2407.2,4.15420112]
[1747643342420,4.51390666,2407.9,2407.0,9.053]
[1747643342618,9.172,2408.1,2407.6,4.15340467]
[1747643342822,22.06718896,2408.4,2407.5,9.053]
[1747643342823,7.90835624,2408.4,2407.5,9.053]
[1747643343108,1.25555262,2408.6,2407.6,1.8221]
[1747643343617,0.49225262,2408.6,2407.9,4.15299638]
[1747643343834,0.49225262,2408.6,2408.5,4.1519618]
[1747643344009,0.49225262,2408.6,2408.5,13.2079618]
[1747643344836,0.49225262,2408.6,2408.5,23.1811618]
[1747643345035,0.49225262,2408.6,2408.5,25.13327429]
[1747643346218,0.49225262,2408.6,2408.5,23.1671618]
[1747643346529,3.75620666,2409.4,2408.7,4.15161705]
[1747643346732,14.21572789,2409.6,2408.6,4.15178942]
[1747643346933,10.06561151,2409.6,2409.2,4.15073213]
[1747643347333,14.21568072,2409.6,2409.1,4.1508967]
[1747643347635,12.35707759,2409.6,2409.1,4.1508967]
[1747643348170,4.15071035,2409.3,2409.0,9.143]
[1747643348463,12.35707759,2409.6,2409.0,9.143]
[1747643348637,4.15025812,2409.5,2409.0,13.29402667]
[1747643349464,10.06561151,2409.6,2409.0,11.59267554]
[1747643349664,3.75620666,2409.3,2408.5,0.8112]
[1747643349968,3.75620666,2408.9,2408.5,14.10614363]
[1747643350369,3.75620666,2408.9,2408.1,18.7046]
[1747643350533,3.75620666,2408.9,2408.4,4.15196959]
[1747643350863,7.9075056,2408.9,2408.2,9.143]
[1747643351035,7.9075056,2408.9,2408.4,4.15211231]
[1747643351234,9.11335595,2408.9,2408.4,4.15211231]
[1747643351954,4.96205701,2408.9,2408.6,4.15178291]
[1747643352598,4.96205701,2408.9,2408.5,4.15191832]
[1747643353802,4.96205701,2408.9,2408.5,4.15190396]
[1747643353950,4.96205701,2408.9,2408.6,4.15177638]
[1747643354153,4.96205701,2408.9,2408.5,13.29486271]
[1747643354357,4.96205701,2408.9,2408.6,4.15170086]
[1747643354567,3.75620666,2408.9,2408.5,9.143]
[1747643354777,3.75620666,2408.9,2408.5,13.29487558]
[1747643354998,3.75620666,2408.9,2408.1,18.7046]
[1747643355161,4.15178942,2408.6,2408.5,9.143]
[1747643355365,4.15153938,2408.8,2408.5,9.143]
[1747643355576,4.15153938,2408.8,2408.5,13.29482058]
[1747643355577,1.20590787,2408.8,2408.5,13.29482058]
[1747643355774,3.75620666,2408.9,2408.5,13.29482058]
[1747643355961,3.75620666,2408.9,2408.5,9.143]
[1747643356165,3.75620666,2409.1,2408.1,22.8572486]
[1747643356369,4.15114594,2409.0,2408.2,4.15240598]
[1747643356573,4.15145755,2408.8,2408.3,4.1523066]
[1747643357051,4.15145755,2408.8,2408.4,4.1521336]
[1747643357256,4.58646242,2408.8,2408.4,9.143]
[1747643357489,4.15187799,2408.6,2408.2,9.143]
[1747643357693,4.9059107,2408.7,2408.2,13.29546708]
[1747643357857,4.9059107,2408.7,2408.2,9.143]
[1747643358271,3.75620666,2408.4,2408.0,4.1527449]
[1747643358481,7.90843749,2408.4,2408.0,13.29681329]
[1747643359004,9.1144668,2408.4,2408.0,9.144]
[1747643359208,4.96223597,2408.4,2408.0,13.29680723]
[1747643360065,4.15186258,2408.6,2408.1,4.15264749]
[1747643360282,4.15186258,2408.6,2408.0,13.29673422]
[1747643360517,4.15203657,2408.5,2408.0,13.29673422]
[1747643360692,4.1521404,2408.4,2408.0,13.29673422]
[1747643361294,4.15199133,2408.5,2408.0,9.144]
[1747643361499,4.15214286,2408.4,2408.0,13.29673998]
[1747643362410,5.01827392,2408.5,2408.0,9.144]
[1747643362607,5.01827392,2408.5,2408.1,4.15257156]
[1747643362832,0.8662398,2408.5,2408.1,4.15257156]
[1747643363315,4.15213456,2408.4,2408.0,13.29672023]
[1747643364180,4.15213456,2408.4,2408.0,9.144]
[1747643364495,5.06915176,2408.4,2408.0,9.144]
[1747643364706,4.67322386,2408.4,2407.9,9.145]
[1747643364882,8.82538549,2408.4,2407.5,17.927]
[1747643365084,4.15302769,2407.9,2407.6,9.145]
[1747643365310,4.15323436,2407.8,2407.5,17.927]
[1747643365489,4.15378696,2407.5,2407.1,0.8253]
[1747643365802,4.1537257,2407.5,2407.1,4.15429598]
[1747643365990,4.15388285,2407.4,2406.9,8.0]
[1747643366195,4.15388285,2407.4,2407.1,9.145]
[1747643366491,4.15434484,2407.2,2407.0,9.145]
[1747643366667,4.15438656,2407.1,2406.9,9.145]
[1747643366873,4.15427718,2407.2,2406.9,9.145]
[1747643367072,4.15439612,2407.1,2406.8,27.45793457]
[1747643367320,4.15472184,2406.9,2406.8,0.38393457]
[1747643367518,4.66502846,2406.9,2406.8,0.38393457]
[1747643367675,10.8655,2407.3,2406.8,0.38393457]
[1747643367870,15.01958099,2407.3,2406.8,0.38393457]
[1747643368106,10.8655,2407.3,2406.8,0.38393457]
[1747643368423,15.01963191,2407.3,2406.6,4.15520446]
[1747643368605,15.01963191,2407.3,2406.8,4.15488225]
[1747643368914,17.39572678,2407.3,2406.8,4.15487358]
[1747643369125,10.8655,2407.3,2406.9,4.15466805]
[1747643369283,7.91005865,2407.5,2406.9,4.15461806]
[1747643369615,7.90997502,2407.5,2407.0,4.15453441]
[1747643369915,7.90989363,2407.5,2407.0,4.15447563]
[1747643370113,3.75620666,2407.5,2407.1,4.15436891]
[1747643370498,7.90991272,2407.5,2407.0,4.15447211]
[1747643370818,4.15393871,2407.4,2406.9,4.15470085]
[1747643371208,5.94331776,2407.5,2406.8,4.15488987]
[1747643371413,4.15388667,2407.4,2406.9,4.1546343]
[1747643371989,4.15403378,2407.3,2406.8,4.15481205]
[1747643372194,4.15403378,2407.3,2406.9,4.15472158]
[1747643372534,10.09701744,2407.5,2407.0,4.15454166]
[1747643372535,10.09702067,2407.5,2407.0,4.15454166]
[1747643372695,4.1538671,2407.4,2406.9,4.154638]
[1747643373025,4.15327788,2407.8,2406.9,22.36968108]
[1747643373224,0.831,2407.9,2407.0,2.31301811]
[1747643373521,4.98407974,2407.9,2407.4,4.15383056]
[1747643373726,4.15319279,2407.8,2407.3,4.15394839]
[1747643373921,4.15335623,2407.7,2407.3,4.15394839]
[1747643374136,4.15324817,2407.8,2407.3,4.15397518]
[1747643374327,4.15324817,2407.8,2407.4,4.15384791]
[1747643374623,0.831,2407.9,2407.5,4.15360084]
[1747643374793,0.831,2407.9,2407.4,4.15376573]
[1747643374994,4.98403761,2407.9,2407.4,4.15376625]
[1747643375297,4.92688988,2408.2,2407.7,4.15330884]
[1747643375510,4.92688988,2408.2,2407.1,8.0]
[1747643375511,3.75620666,2408.1,2407.1,8.0]
[1747643375726,3.75620666,2407.8,2407.1,9.148]
[1747643375912,7.90945986,2407.8,2407.3,4.15399487]
[1747643376223,4.15351211,2407.7,2407.2,4.15406771]
[1747643376437,4.15337323,2407.7,2407.1,4.15427839]
[1747643376606,4.96245505,2407.8,2407.0,4.97044978]
[1747643376607,4.92797295,2407.6,2407.0,4.97044978]
[1747643376809,4.15370246,2407.5,2407.1,9.148]
[1747643377232,4.15392216,2407.4,2407.0,0.816]
[1747643377433,0.90819246,2407.4,2407.0,9.057]
[1747643377595,4.1541226,2407.3,2407.0,9.057]
[1747643377798,3.75620666,2407.5,2407.0,13.2115453]
[1747643378027,4.15388438,2407.4,2407.0,9.057]
[1747643378428,4.15388438,2407.4,2406.9,13.21162024]
[1747643378957,4.15388438,2407.4,2407.0,4.15454783]
[1747643379134,4.15388438,2407.4,2406.9,13.21162324]
[1747643379331,4.92789357,2407.6,2406.9,11.77754895]
[1747643379535,4.92789357,2407.6,2407.1,4.15427636]
[1747643379771,0.7743,2407.6,2407.1,4.15427636]
[1747643380262,4.92791371,2407.6,2407.1,4.15427636]
[1747643380571,4.92791371,2407.6,2407.2,4.15420088]
[1747643380771,4.92791371,2407.6,2407.1,4.15429144]
[1747643382230,5.77138935,2407.6,2407.1,4.15429144]
[1747643382431,4.15372343,2407.5,2407.0,4.15444436]
[1747643382966,4.15372343,2407.5,2407.1,9.058]
[1747643383169,4.15386427,2407.4,2407.1,9.058]
[1747643383570,4.15377288,2407.5,2407.1,9.058]
[1747643383875,0.99251171,2407.4,2406.9,4.15457062]
[1747643384201,0.99251171,2407.4,2407.0,4.15454008]
[1747643384202,4.15394776,2407.4,2407.0,4.15454008]
[1747643384333,0.7743,2407.6,2406.8,8.7524]
[1747643384530,4.15378144,2407.5,2407.0,4.15441262]
[1747643384932,4.15378215,2407.5,2407.0,4.15441262]
[1747643385132,12.15627597,2406.0,2404.0,0.7524]
[1747643385447,12.15713988,2405.5,2405.0,0.95283604]
[1747643385797,35.49054654,2405.5,2405.0,0.95283604]
[1747643387290,36.04054654,2405.5,2405.0,0.95283604]
[1747643388269,0.7988,2405.1,2403.8,0.7611]
[1747643388574,4.95673332,2405.1,2404.4,4.15889044]
[1747643388889,0.7988,2405.1,2404.5,4.15875904]
[1747643389220,4.95676751,2405.1,2404.3,12.15921474]
[1747643389408,4.95676751,2405.1,2404.4,4.15903741]
[1747643389698,4.95676751,2405.1,2404.4,4.15898479]
[1747643389856,4.95673861,2405.1,2404.4,4.15898479]
[1747643390271,4.95673861,2405.1,2404.5,4.15881993]
[1747643390899,7.9142294,2405.0,2404.5,4.15881993]
[1747643391586,3.75620666,2405.0,2404.6,4.15865465]
[1747643391789,3.75620666,2405.0,2404.6,4.15868446]
[1747643392300,3.75620666,2405.0,2404.6,4.15858595]
[1747643392504,2.46414405,2406.0,2404.8,4.70834996]
[1747643392656,4.91221563,2406.0,2405.3,4.15738546]
[1747643392855,4.15653886,2405.9,2405.4,4.15731202]
[1747643393572,4.91229599,2406.0,2405.4,4.15731202]
[1747643393765,4.15644873,2405.9,2405.3,9.404]
[1747643393970,3.75620666,2405.8,2405.3,13.56148165]
[1747643394195,4.91221789,2406.0,2405.1,9.404]
[1747643394196,3.75620666,2405.5,2405.1,9.404]
[1747643394397,7.91346535,2405.5,2405.0,4.15799821]
[1747643394581,7.91346535,2405.5,2405.1,9.405]
[1747643394783,9.12049645,2405.5,2405.1,9.405]
[1747643395788,4.96323776,2405.5,2405.1,13.56282378]
[1747643396091,4.96323776,2405.5,2405.1,9.405]
[1747643396388,9.12038081,2405.5,2405.1,9.405]
[1747643396586,0.7619,2405.4,2405.1,9.405]
[1747643396836,4.57500666,2405.8,2405.1,9.405]
[1747643397131,0.8188,2405.8,2405.4,4.15718242]
[1747643397339,2.69895612,2405.8,2405.5,4.15713575]
[1747643397512,2.69895612,2405.8,2405.4,4.15724155]
[1747643399148,0.8188,2405.8,2405.5,4.15698998]
[1747643399446,13.20220666,2406.1,2405.6,4.15681854]
[1747643399447,4.1562809,2406.0,2405.6,4.15681854]
[1747643399803,4.1562809,2406.0,2405.5,4.15697064]
[1747643400004,4.15653602,2405.9,2405.5,9.406]
[1747643400400,4.56250666,2406.1,2405.0,12.91235302]
[1747643400615,0.45625067,2406.0,2405.6,4.15696698]
[1747643400820,0.45625067,2406.0,2405.1,9.406]
[1747643401064,4.56250666,2406.1,2405.6,4.15687565]
[1747643401254,8.71872589,2406.1,2405.6,4.15682846]
[1747643401567,4.56250666,2406.1,2405.7,4.15678556]
[1747643401722,4.56250666,2406.1,2405.6,13.56295976]
[1747643401925,4.15637666,2406.0,2405.6,9.406]
[1747643402123,5.44387962,2406.0,2405.6,9.406]
[1747643402359,5.44387962,2406.0,2405.5,4.15704265]
[1747643402651,3.75620666,2405.8,2405.0,0.7544]
[1747643402852,4.15756422,2405.3,2405.0,9.406]
[1747643403051,4.57344259,2405.2,2405.0,9.406]
[1747643403257,4.57344259,2405.2,2404.7,0.7933]
[1747643403258,0.7623,2405.1,2404.7,9.406]
[1747643403575,3.75620666,2404.9,2404.2,13.56526299]
[1747643403867,0.7623,2404.5,2403.8,4.15997816]
[1747643404153,0.7623,2404.5,2403.7,17.95]
[1747643404323,0.793,2404.8,2404.4,4.15894181]
[1747643404520,0.793,2404.8,2404.6,4.15862246]
[1747643404757,7.91429641,2405.0,2404.5,4.15876365]
[1747643404967,5.5692763,2405.0,2404.6,4.15866989]
[1747643405254,5.5692763,2405.0,2404.6,4.15868935]
[1747643405417,5.97114865,2405.0,2404.6,4.15867386]
[1747643405617,4.15814658,2405.0,2404.5,4.15879712]
[1747643405850,4.158193,2404.9,2404.4,4.15895298]
[1747643406038,4.158193,2404.9,2404.5,4.15885293]
[1747643406355,7.91430989,2405.0,2404.5,4.15885293]
[1747643406556,1.20721556,2404.9,2404.5,4.15885293]
[1747643406791,7.91430989,2405.0,2404.6,4.15856746]
[1747643406792,3.75620666,2405.0,2404.6,4.15856746]
[1747643407267,3.75620666,2405.0,2404.7,4.15851715]
[1747643407636,0.7,2404.8,2404.6,4.15869583]
[1747643407943,0.7,2404.8,2404.7,4.15852289]
[1747643408667,0.812,2405.6,2404.8,4.15834996]
[1747643408864,0.812,2405.6,2405.3,4.15738375]
[1747643409065,13.53506787,2406.2,2405.7,4.15668569]
[1747643409066,14.64300666,2406.2,2405.7,4.15668569]
[1747643409226,14.64300666,2406.2,2405.3,4.15738444]
[1747643409426,4.15687642,2405.7,2405.2,4.15759764]
[1747643409631,4.15662149,2405.8,2405.3,13.56447515]
[1747643409632,4.15670381,2405.8,2405.3,13.56447515]
[1747643410065,3.75620666,2405.9,2405.0,0.8049]
[1747643410367,8.74082005,2405.6,2405.1,9.407]
[1747643410575,8.7408641,2405.6,2405.1,13.56482119]
[1747643410729,4.1566513,2405.8,2405.3,4.15737196]
[1747643410932,4.1566513,2405.8,2405.3,4.15748555]
[1747643411227,4.15665572,2405.8,2405.3,4.15739133]
[1747643411427,4.57630666,2405.9,2405.3,9.407]
[1747643411428,3.75620666,2405.6,2405.3,9.407]
[1747643411648,4.15713988,2405.5,2405.3,9.407]
[1747643412068,7.91325701,2405.6,2405.3,9.407]
[1747643412257,9.12026631,2405.6,2405.3,9.407]
[1747643412565,4.15726058,2405.5,2405.2,9.407]
[1747643413080,9.12018995,2405.6,2405.2,9.407]
[1747643413367,9.12025873,2405.6,2405.2,9.407]
[1747643414535,4.15724142,2405.5,2405.2,9.407]
[1747643414731,4.15718818,2405.5,2405.2,9.407]
[1747643415469,1.32773358,2405.5,2404.7,8.793]
[1747643415681,0.8201,2405.3,2404.7,0.793]
[1747643415976,0.8201,2405.3,2404.8,0.23265546]
[1747643415977,4.57630666,2405.3,2404.8,0.23265546]
[1747643416140,4.15807463,2405.0,2404.8,0.23265546]
[1747643416649,4.15852289,2404.7,2404.6,17.952]
[1747643417474,4.15844235,2404.8,2404.6,17.952]
[1747643417678,4.15817705,2404.9,2404.4,9.325]
[1747643417847,4.15861192,2404.7,2404.4,9.325]
[1747643418046,4.15861192,2404.7,2404.2,13.47237867]
[1747643418047,4.1587176,2404.6,2404.1,4.93721902]
[1747643418249,4.15876906,2404.6,2404.4,9.325]
[1747643418651,4.15876906,2404.6,2404.2,4.15937158]
[1747643418851,4.15893639,2404.5,2404.0,13.48556165]
[1747643419185,4.58900666,2404.7,2404.0,13.48556165]
[1747643419186,0.8328,2405.0,2404.6,4.15853161]
[1747643419389,4.99081563,2405.0,2404.6,4.15853161]
[1747643419586,4.99081563,2405.0,2404.5,13.48478079]
[1747643420889,4.99081563,2405.0,2404.6,4.15863732]
[1747643421191,10.56295422,2405.2,2404.8,4.15826484]
[1747643421492,0.49295422,2405.2,2404.6,12.15869583]
[1747643421696,0.49295422,2405.2,2404.7,2.14846958]
[1747643421855,0.49295422,2405.2,2404.9,4.15802521]
[1747643422051,0.49295422,2405.2,2404.8,4.15828779]
[1747643422052,4.15794898,2405.1,2404.8,9.326]
[1747643422307,4.24916088,2405.2,2404.0,0.7777]
[1747643422308,8.8328,2405.0,2404.0,0.7777]
[1747643422611,4.15827633,2404.9,2404.4,9.326]
[1747643422778,0.8328,2405.0,2404.5,4.15873754]
[1747643422962,4.99096342,2405.0,2404.5,4.15873754]
[1747643423156,4.15861089,2404.7,2404.5,9.326]
[1747643423387,2.1233139,2405.0,2404.4,9.326]
[1747643423586,4.15826453,2404.9,2404.4,9.326]
[1747643423790,4.15826453,2404.9,2404.4,13.48496672]
[1747643423996,4.1583614,2404.8,2404.4,13.48496672]
[1747643424463,4.15864848,2404.7,2404.5,9.327]
[1747643424802,4.1578837,2405.1,2403.3,10.1568]
[1747643424803,4.15991159,2403.9,2403.3,10.1568]
[1747643424982,4.15991159,2403.9,2403.3,9.327]
[1747643424983,4.16070998,2403.5,2403.3,9.327]
[1747643425183,4.16052251,2403.6,2403.3,9.327]
[1747643425381,0.41599116,2403.9,2403.3,9.327]
[1747643425897,4.16033424,2403.7,2403.3,9.327]
[1747643426460,4.16015875,2403.8,2403.3,13.48793555]
[1747643426685,4.16015875,2403.8,2403.3,4.16093555]
[1747643426892,4.16009298,2403.8,2403.3,13.48782642]
[1747643427057,4.16026145,2403.7,2403.3,4.16082642]
[1747643427257,4.16017219,2403.8,2403.3,4.1609427]
[1747643427494,4.92913696,2404.0,2403.5,4.16059849]
[1747643427702,0.7693,2404.0,2403.5,4.16047792]
[1747643427921,1.30085422,2404.4,2403.9,4.15982889]
[1747643428096,5.46003251,2404.4,2403.9,4.15982889]
[1747643428303,4.15936337,2404.3,2404.0,9.328]
[1747643428500,4.16017167,2403.8,2403.3,4.16093479]
[1747643428820,4.16058169,2403.6,2403.2,9.328]
[1747643429119,4.16058169,2403.6,2402.6,0.38667287]
[1747643429120,3.75620666,2403.4,2402.6,0.38667287]
[1747643429284,9.23329109,2402.7,2402.6,0.38667287]
[1747643429478,8.68329109,2402.7,2402.6,0.38667287]
[1747643429676,16.68329109,2402.7,2402.6,0.38667287]
[1747643429911,17.23329109,2402.7,2402.6,0.38667287]
[1747643430484,16.68329109,2402.7,2402.6,0.38667287]
[1747643430692,28.23580145,2402.7,2402.6,0.38667287]
[1747643431310,8.68329109,2402.7,2402.6,0.38667287]
[1747643431526,4.16220732,2402.6,2402.1,4.16293268]
[1747643431683,4.52130666,2402.7,2401.4,12.16417721]
[1747643431881,4.16259245,2402.4,2401.8,4.1633724]
[1747643432279,4.58869338,2402.4,2401.7,9.331]
[1747643432480,4.16276185,2402.3,2401.8,4.16345258]
[1747643432781,4.1632877,2402.0,2401.7,0.34757988]
[1747643433093,0.823,2402.1,2401.7,0.34757988]
[1747643433094,4.57920666,2402.1,2401.7,0.34757988]
[1747643433288,4.57920666,2402.1,2401.7,4.51121683]
[1747643433488,0.823,2402.1,2401.8,4.16343888]
[1747643433724,4.16251533,2402.4,2401.5,9.331]
[1747643433725,0.7506,2402.4,2401.5,13.49498957]
[1747643433878,3.75620666,2402.6,2401.3,8.0]
[1747643433879,8.0,2402.6,2401.6,0.7712]
[1747643434231,4.16268905,2402.3,2401.7,9.333]
[1747643434425,4.16268905,2402.3,2401.7,4.16360308]
[1747643434724,4.16295843,2402.2,2401.7,4.16370289]
[1747643434890,7.91895578,2402.3,2401.8,4.1635276]
[1747643435220,9.12710097,2402.3,2401.8,4.1635276]
[1747643435619,9.12710097,2402.3,2401.8,4.16342961]
[1747643435821,4.16252184,2402.4,2401.9,4.16336107]
[1747643436019,4.16250794,2402.4,2402.0,4.16318811]
[1747643436220,4.16250794,2402.4,2401.2,10.2512]
[1747643436221,0.8059,2400.8,2399.9,0.7806]
[1747643436391,4.56210666,2400.8,2399.9,0.7806]
[1747643436576,4.56210666,2400.8,2400.3,4.16604239]
[1747643436782,0.8059,2400.8,2400.2,4.16630808]
[1747643437019,4.97127206,2400.8,2400.3,4.16605888]
[1747643437322,4.97127206,2400.8,2399.6,4.16735258]
[1747643437323,26.9705584,2400.7,2399.5,4.1675181]
[1747643437491,0.8059,2400.7,2399.6,0.04166891]
[1747643437681,8.0,2401.1,2400.5,4.16569658]
[1747643437883,0.8059,2401.1,2400.8,4.16515343]
[1747643438096,0.8059,2401.1,2400.7,4.16537135]
[1747643438294,0.8059,2401.1,2400.7,4.16540954]
[1747643438932,0.7984,2401.7,2401.3,4.16437082]
[1747643439231,0.7984,2401.7,2401.0,4.16490537]
[1747643439232,0.7984,2402.0,2401.4,4.16415018]
[1747643439533,7.92023645,2401.6,2400.8,9.65]
[1747643439739,3.75620666,2401.6,2401.1,4.16462315]
[1747643439909,3.75620666,2401.3,2400.6,0.73605198]
[1747643440107,4.16545174,2400.7,2400.6,0.73605198]
[1747643441146,0.8217,2400.8,2400.6,0.73605198]
[1747643441862,7.92126627,2401.0,2400.6,0.73605198]
[1747643442039,4.16510643,2400.9,2400.6,0.73605198]
[1747643442241,4.16537194,2400.8,2400.6,0.73605198]
[1747643442546,4.16530241,2400.8,2400.6,0.73605198]
[1747643443104,4.16498437,2401.0,2400.6,0.73605198]
[1747643443314,10.551,2401.1,2400.6,0.73605198]
[1747643443315,4.16513427,2400.9,2400.6,0.73605198]
[1747643443820,4.16518819,2400.9,2400.6,0.73605198]
[1747643444196,4.16510844,2400.9,2400.6,0.73605198]
[1747643444943,4.16510475,2400.9,2400.6,0.73605198]
[1747643445502,4.16529534,2400.8,2400.6,0.73605198]
[1747643446619,4.16541412,2400.8,2400.6,0.73605198]
[1747643447123,4.16545174,2400.7,2400.6,0.73605198]
[1747643447621,4.16541412,2400.8,2400.6,0.73605198]
[1747643447819,4.16545174,2400.7,2400.6,0.73605198]
[1747643448060,16.7091584,2400.7,2400.6,0.73605198]
[1747643449123,18.3641584,2400.7,2400.6,0.73605198]
[1747643449322,4.95295174,2400.7,2400.6,0.73605198]
[1747643449627,4.16545174,2400.7,2400.6,0.73605198]
[1747643449832,4.16537156,2400.8,2400.6,0.73605198]
[1747643450133,4.16545174,2400.7,2400.6,0.73605198]
[1747643450533,4.16536819,2400.8,2400.6,0.73605198]
[1747643450733,4.16545174,2400.7,2400.6,0.73605198]
[1747643453244,4.16538302,2400.8,2400.6,0.73605198]
[1747643453949,10.4195,2401.0,2400.6,0.73605198]
[1747643454149,4.16523287,2400.9,2400.6,0.73605198]
[1747643454363,4.16530938,2400.8,2400.6,0.73605198]
[1747643455164,4.16517933,2400.9,2400.6,0.73605198]
[1747643455337,4.16510813,2400.9,2400.6,0.73605198]
[1747643455968,4.16528219,2400.8,2400.6,0.73605198]
[1747643456165,4.16518947,2400.9,2400.6,0.73605198]
[1747643457639,4.16545174,2400.7,2400.6,0.73605198]
[1747643459171,4.92085174,2400.7,2400.6,0.73605198]
[1747643459733,4.16532074,2400.8,2400.6,0.73605198]
[1747643460574,4.16529849,2400.8,2400.6,0.73605198]
[1747643461044,4.16545174,2400.7,2400.6,0.73605198]
[1747643461445,4.16545174,2400.7,2400.2,4.17128131]
[1747643461863,4.16540252,2400.8,2400.3,4.1660842]
[1747643462065,4.16572043,2400.6,2400.2,0.005]
[1747643462266,4.16569844,2400.6,2400.2,0.005]
[1747643462471,4.16587635,2400.5,2400.2,0.005]
[1747643462774,4.16614589,2400.3,2400.2,0.005]
[1747643465136,5.11945924,2400.3,2400.2,0.005]
[1747643465330,0.95331335,2400.3,2400.2,0.005]
[1747643465537,16.06211908,2400.8,2400.2,0.005]
[1747643465740,16.47124789,2400.8,2400.3,4.16603238]
[1747643465936,4.16551951,2400.7,2400.3,4.16603238]
[1747643466178,4.16551951,2400.7,2400.2,4.17121941]
[1747643466352,4.16551951,2400.7,2400.3,4.16613403]
[1747643466552,10.56295422,2400.8,2400.5,4.16579001]
[1747643466764,0.49295422,2400.8,2400.4,0.8295]
[1747643466968,0.49295422,2400.8,2400.4,4.99542053]
[1747643467153,0.49295422,2400.8,2400.5,4.16567702]
[1747643467564,0.49295422,2400.8,2400.6,0.23339005]
[1747643467759,0.49295422,2400.8,2400.6,4.39899664]
[1747643468081,0.49295422,2400.8,2400.6,0.23339005]
[1747643468390,0.49295422,2400.8,2400.5,4.16567016]
[1747643468971,0.49295422,2400.8,2400.4,14.44540164]
[1747643469174,5.11332433,2400.8,2400.5,0.2334119]
[1747643469686,4.16511864,2400.9,2400.5,4.39912505]
[1747643469882,7.92121523,2401.0,2400.5,4.39912505]
[1747643470286,7.92121523,2401.0,2400.6,0.2334119]
[1747643470473,4.16511062,2400.9,2400.6,0.2334119]
[1747643470671,7.92122594,2401.0,2400.6,0.2334119]
[1747643470885,4.16513797,2400.9,2400.6,0.2334119]
[1747643471091,4.16513797,2400.9,2400.5,4.16571315]
[1747643471277,4.16551948,2400.7,2400.2,4.17131796]
[1747643471476,4.16551948,2400.7,2400.2,4.17123287]
[1747643471477,4.16554354,2400.7,2400.2,4.17123287]
[1747643471772,4.93268225,2400.8,2400.3,4.39978666]
[1747643471773,4.93276688,2400.8,2400.3,4.39978666]
[1747643472003,6.33902562,2400.8,2400.3,4.39969915]
[1747643472201,4.16517244,2400.9,2400.4,0.23364501]
[1747643472503,4.16538693,2400.8,2400.4,0.23364501]
[1747643472802,4.16518851,2400.9,2400.5,4.16578793]
[1747643473169,4.16533032,2400.8,2400.4,4.39951084]
[1747643473511,4.16520831,2400.9,2400.4,4.16586583]
[1747643473672,4.87090862,2400.9,2400.5,4.16577304]
[1747643474110,0.70570031,2400.9,2400.2,0.005]
[1747643474407,4.87081342,2400.9,2400.5,4.16578908]
[1747643474571,0.70570031,2400.9,2400.5,4.16565537]
[1747643475269,8.73932269,2401.1,2400.6,4.16554498]
[1747643475474,0.8183,2401.1,2400.6,4.16548472]
[1747643475808,4.16494571,2401.0,2400.6,4.16548472]
[1747643476311,4.65757106,2401.2,2400.7,5.15761566]
[1747643476467,0.49295422,2401.2,2400.9,4.16494387]
[1747643476667,0.49295422,2401.2,2400.9,4.16510475]
[1747643476871,0.49295422,2401.2,2400.7,0.99232896]
[1747643476872,0.49295422,2401.2,2401.0,0.23362896]
[1747643477487,4.16475781,2401.1,2401.0,0.23362896]
[1747643477695,5.00614968,2401.1,2401.0,0.23362896]
[1747643477897,0.84139187,2401.1,2400.6,4.16555336]
[1747643478075,0.49295422,2401.2,2400.9,4.16509834]
[1747643478411,4.65720137,2401.4,2401.0,0.7625]
[1747643478706,4.16462279,2401.2,2400.8,9.449]
[1747643479070,4.65725642,2401.4,2400.8,13.61420439]
[1747643479269,0.49295422,2401.4,2400.8,13.61424091]
[1747643479493,5.00576254,2401.3,2400.9,4.16499959]
[1747643480212,0.841333,2401.3,2400.9,4.16499959]
[1747643480506,0.841333,2401.3,2400.9,4.16502409]
[1747643480813,5.00590323,2401.3,2400.8,13.61418441]
[1747643481113,4.16467593,2401.2,2400.8,9.449]
[1747643481308,5.08173385,2401.2,2400.8,9.449]
[1747643481514,4.16513043,2400.9,2400.6,9.449]
[1747643481711,4.16486737,2401.1,2400.6,9.449]
[1747643481712,4.16501323,2401.0,2400.6,9.449]
[1747643481890,4.16512647,2400.9,2400.6,9.449]